bitfinex-derivatives/quotes_ETHF0:USTF0_20220108
["timestamp","ask_amount","ask_price","bid_price","bid_amount"]
[1641629173983,2.00479,3222.1,3222.0,0.78337438]
[1641629174184,2.00479,3222.1,3221.9,1.68894938]
[1641629175283,2.269578,3222.1,3221.9,0.78337438]
[1641629176584,1.5,3222.0,3221.9,0.78337438]
[1641629176784,2.269578,3222.1,3221.9,0.78337438]
[1641629176984,2.269578,3222.1,3221.5,2.00479]
[1641629176985,2.269578,3222.1,3221.6,1.27879626]
[1641629177885,2.269578,3222.1,3221.5,2.78816438]
[1641629179087,2.269578,3222.1,3221.6,1.27880921]
[1641629180091,2.269578,3222.1,3221.5,2.78816438]
[1641629180790,2.269578,3222.1,3221.5,3.69373938]
[1641629181093,2.269578,3222.1,3221.6,1.2787999]
[1641629181689,2.00479,3222.1,3221.6,1.2787999]
[1641629181892,2.00479,3222.1,3221.7,0.264788]
[1641629182091,2.00479,3222.1,3221.7,1.04816238]
[1641629183097,2.00479,3222.1,3221.8,1.2787999]
[1641629183897,2.00479,3222.1,3221.9,0.264788]
[1641629184892,2.00479,3222.1,3222.0,0.865784]
[1641629185794,2.00479,3222.1,3222.0,1.36116402]
[1641629186592,2.00479,3222.1,3222.0,1.94116402]
[1641629190700,2.00479,3222.6,3222.0,1.94116402]
[1641629191001,2.00479,3222.6,3222.1,0.264788]
[1641629191700,2.00479,3222.6,3222.1,2.269578]
[1641629192802,2.00479,3222.6,3222.2,0.49538002]
[1641629193101,2.00479,3222.6,3222.3,0.264788]
[1641629193301,2.00479,3222.6,3222.4,0.640787]
[1641629193500,2.00479,3222.6,3222.5,0.264788]
[1641629194004,2.00479,3222.6,3222.5,1.49695699]
[1641629195003,2.00479,3222.6,3222.5,1.99233701]
[1641629196406,2.00479,3223.1,3222.5,1.99233701]
[1641629196608,2.00479,3223.1,3222.5,3.54327525]
[1641629196906,1.96174941,3224.0,3223.0,3.05058473]
[1641629197114,8.0,3224.6,3223.0,3.05058473]
[1641629197115,1.57663744,3224.1,3223.2,1.5]
[1641629197407,1.57663744,3224.1,3223.7,1.55036837]
[1641629197613,1.57663744,3224.1,3223.8,0.264788]
[1641629198213,1.57663744,3224.1,3224.0,1.55018571]
[1641629198415,2.61566588,3224.6,3224.0,3.31497371]
[1641629198620,3.26958235,3224.8,3224.5,1.5]
[1641629198814,0.44038235,3225.4,3224.7,3.04959478]
[1641629199013,2.63389464,3225.2,3225.0,1.5]
[1641629199218,2.09649882,3226.1,3225.1,3.6901537]
[1641629199414,2.09649882,3226.1,3225.5,1.5]
[1641629199715,2.09649882,3226.1,3225.8,2.00479]
[1641629200114,2.09649882,3226.1,3225.9,0.264788]
[1641629200515,2.09649882,3226.1,3226.0,1.21402625]
[1641629200719,2.09649882,3226.1,3226.0,1.47881425]
[1641629200915,2.09649882,3226.1,3226.0,1.21402625]
[1641629201117,2.36128682,3226.1,3224.9,0.7781599]
[1641629201318,0.949788,3226.1,3224.9,0.7781599]
[1641629201718,2.00479,3225.7,3225.0,1.5]
[1641629201917,2.00479,3225.7,3225.2,0.905575]
[1641629202117,2.00479,3226.5,3225.2,1.654775]
[1641629202918,2.00479,3226.5,3225.5,1.5]
[1641629203319,2.00479,3226.5,3225.9,1.54930428]
[1641629203518,2.00479,3226.5,3226.0,0.264788]
[1641629203719,2.910365,3226.5,3226.0,2.269578]
[1641629204121,2.00479,3226.5,3226.1,0.640787]
[1641629204620,2.00479,3226.5,3226.2,1.43946544]
[1641629204822,2.00479,3226.5,3226.0,2.269578]
[1641629204823,1.764788,3226.4,3225.7,2.00479]
[1641629205021,1.5,3225.8,3225.2,0.7781599]
[1641629205221,1.5,3226.3,3225.2,0.264788]
[1641629205622,0.6508,3226.4,3225.2,0.264788]
[1641629205823,2.00479,3225.5,3225.2,0.264788]
[1641629206023,2.00479,3225.5,3224.8,4.33279685]
[1641629206024,1.5,3225.3,3224.8,0.7781599]
[1641629206227,1.5,3225.2,3224.8,0.7781599]
[1641629206624,0.264788,3225.1,3224.8,0.7781599]
[1641629206826,0.264788,3225.1,3224.6,0.264788]
[1641629207024,3.55514395,3225.5,3224.5,0.7781599]
[1641629207025,2.00479,3225.5,3224.7,0.640787]
[1641629207224,2.00479,3225.5,3224.7,1.357687]
[1641629207425,2.00479,3225.5,3224.8,0.264788]
[1641629207925,4.00958,3225.5,3224.8,0.264788]
[1641629208526,2.00479,3225.5,3224.8,0.264788]
[1641629208725,1.5,3226.4,3224.8,1.81463976]
[1641629208925,1.54960919,3227.1,3225.8,1.54933789]
[1641629209128,1.5,3226.7,3225.8,0.7696]
[1641629209725,2.00479,3226.1,3225.8,0.7696]
[1641629209925,1.5,3225.9,3225.8,0.7696]
[1641629210125,1.5,3225.9,3224.5,18.87129]
[1641629210328,1.5,3225.9,3224.5,2.00479]
[1641629210526,1.5,3225.9,3224.8,2.32800685]
[1641629210928,1.5,3225.8,3224.8,2.32800685]
[1641629211727,2.00479,3225.5,3224.8,1.54984695]
[1641629211930,2.00479,3225.5,3224.9,0.905575]
[1641629213427,2.269578,3225.5,3224.9,0.905575]
[1641629213628,2.269578,3225.5,3224.9,0.264788]
[1641629214028,2.269578,3225.5,3224.9,0.905575]
[1641629214432,1.5,3225.2,3224.5,1.5499983]
[1641629214628,0.905575,3225.1,3224.2,0.7781599]
[1641629214928,1.5,3225.0,3224.2,0.7781599]
[1641629215130,1.5,3224.7,3224.2,0.7781599]
[1641629215327,2.3439,3224.7,3224.2,0.7781599]
[1641629215528,1.5,3224.3,3223.7,1.31675651]
[1641629215729,1.5,3224.1,3223.7,1.31675651]
[1641629216035,1.5,3224.1,3223.5,3.54208891]
[1641629216036,1.5,3224.1,3223.5,2.77336172]
[1641629216230,0.264788,3224.0,3223.5,2.77336172]
[1641629216430,1.090288,3224.0,3223.5,2.77336172]
[1641629216628,0.640787,3223.9,3223.5,2.77336172]
[1641629216829,0.264788,3223.8,3223.5,2.77336172]
[1641629217229,0.264788,3223.8,3223.5,2.00479]
[1641629217431,0.640787,3223.9,3223.5,2.00479]
[1641629217630,2.00479,3224.3,3223.5,2.00479]
[1641629218035,0.264788,3224.2,3223.5,2.00479]
[1641629218431,0.264788,3224.2,3223.6,0.264788]
[1641629219434,2.00479,3224.3,3223.6,0.264788]
[1641629219835,2.269578,3224.3,3223.6,0.264788]
[1641629220037,0.640787,3224.2,3223.6,0.264788]
[1641629220238,2.00479,3224.3,3223.6,0.264788]
[1641629220635,0.264788,3224.2,3223.6,0.264788]
[1641629220837,2.00479,3224.3,3223.6,0.264788]
[1641629223642,0.640787,3224.2,3223.6,0.264788]
[1641629224043,2.00479,3224.3,3223.6,0.264788]
[1641629224247,0.264788,3224.2,3223.6,1.206088]
[1641629225848,0.640787,3224.1,3223.6,1.206088]
[1641629226248,0.264788,3224.2,3223.6,1.206088]
[1641629228751,0.905575,3224.2,3223.6,1.206088]
[1641629229555,2.00479,3224.3,3223.6,1.206088]
[1641629229755,16.4229,3224.9,3224.2,2.00479]
[1641629229953,2.00479,3225.2,3224.3,2.4556694]
[1641629230155,2.00479,3225.2,3224.3,3.1434694]
[1641629230857,2.00479,3225.2,3224.4,1.12747252]
[1641629231056,0.905575,3225.1,3224.5,0.264788]
[1641629231556,0.905575,3225.1,3224.4,1.12747252]
[1641629232155,0.905575,3225.1,3224.5,0.640787]
[1641629232654,0.905575,3225.1,3224.4,1.12747252]
[1641629232855,0.905575,3225.1,3224.5,0.264788]
[1641629233058,2.00479,3225.2,3224.5,0.264788]
[1641629233255,2.00479,3225.2,3224.5,1.146988]
[1641629233455,2.645577,3225.2,3224.5,1.146988]
[1641629234256,2.645577,3225.2,3224.6,0.640787]
[1641629234457,2.645577,3225.2,3224.7,0.264788]
[1641629234657,32.8972,3225.9,3224.7,1.81468299]
[1641629234857,16.7205,3226.0,3224.7,1.81468299]
[1641629235658,16.7205,3226.0,3224.7,3.31468299]
[1641629235959,1.5,3225.9,3225.3,2.00479]
[1641629236158,2.405575,3225.9,3225.3,2.00479]
[1641629236859,1.5,3225.4,3224.4,2.67748043]
[1641629237059,1.5,3225.5,3224.4,2.67748043]
[1641629237257,1.5,3225.4,3224.4,2.67748043]
[1641629237858,2.00479,3225.2,3224.5,2.00479]
[1641629238058,2.00479,3225.2,3224.6,0.905575]
[1641629238259,2.269578,3225.2,3224.6,0.905575]
[1641629238459,2.910365,3225.2,3224.6,0.905575]
[1641629239060,2.00479,3225.2,3224.6,0.905575]
[1641629239458,2.269578,3225.2,3224.6,0.905575]
[1641629239659,2.269578,3225.2,3224.5,2.00479]
[1641629240059,2.269578,3225.2,3224.6,0.640787]
[1641629240460,2.269578,3225.2,3224.5,2.915778]
[1641629240660,0.640787,3225.1,3224.5,2.65099]
[1641629240859,0.264788,3225.0,3224.5,2.65099]
[1641629241461,0.264788,3225.0,3224.5,2.00479]
[1641629241659,0.264788,3225.0,3224.6,0.264788]
[1641629246369,0.264788,3225.0,3224.5,2.00479]
[1641629246563,0.264788,3225.0,3224.6,0.640787]
[1641629247764,0.264788,3225.0,3224.5,2.00479]
[1641629251673,0.264788,3225.0,3224.5,2.269578]
[1641629251874,2.00479,3225.8,3224.9,3.55445922]
[1641629252072,2.00479,3225.8,3224.9,5.79185922]
[1641629252975,2.00479,3226.2,3225.1,1.5]
[1641629253976,2.00479,3226.2,3225.5,2.00479]
[1641629254176,2.00479,3226.2,3225.6,0.905575]
[1641629254177,0.905575,3226.1,3225.6,0.905575]
[1641629254377,0.640787,3226.1,3225.6,1.577075]
[1641629254776,2.00479,3226.2,3225.6,1.577075]
[1641629257080,0.264788,3226.1,3225.6,1.577075]
[1641629257282,2.00479,3226.2,3225.6,1.577075]
[1641629257482,5.374,3227.2,3225.7,1.5]
[1641629257682,16.6293,3226.9,3225.7,1.5]
[1641629257882,5.374,3227.2,3226.5,2.00479]
[1641629257883,7.37879,3227.2,3226.5,2.00479]
[1641629258183,2.00479,3227.2,3226.6,0.905575]
[1641629258982,2.910365,3227.2,3226.6,0.264788]
[1641629259382,2.910365,3227.2,3226.7,0.85209783]
[1641629260482,2.910365,3227.2,3226.7,1.72028583]
[1641629260884,2.00479,3227.2,3226.7,1.72028583]
[1641629261284,2.645577,3227.2,3226.7,1.72028583]
[1641629261507,2.910365,3227.2,3226.7,1.72028583]
[1641629261683,2.910365,3227.2,3226.7,1.45549783]
[1641629262886,2.910365,3227.2,3226.7,0.6034]
[1641629263086,2.00479,3227.2,3226.7,0.905575]
[1641629263287,2.00479,3227.2,3226.7,1.711775]
[1641629263487,2.00479,3227.2,3226.7,2.65567601]
[1641629263887,2.645577,3227.2,3226.7,2.65567601]
[1641629264287,2.00479,3227.2,3226.7,2.65567601]
[1641629264687,0.264788,3227.1,3226.7,2.65567601]
[1641629264888,0.264788,3227.1,3226.7,2.39088801]
[1641629265092,1.5,3226.9,3226.5,2.77571848]
[1641629265288,0.264788,3226.8,3226.5,2.77571848]
[1641629266089,0.640787,3226.7,3226.5,2.77571848]
[1641629266489,0.640787,3226.7,3226.5,2.00479]
[1641629267691,0.264788,3226.6,3226.5,2.00479]
[1641629267991,1.764788,3226.6,3226.2,2.00479]
[1641629268191,0.264788,3226.6,3226.2,2.00479]
[1641629272799,0.640787,3226.7,3226.2,2.00479]
[1641629272997,5.374,3227.4,3226.3,1.81388348]
[1641629273196,5.374,3227.4,3226.3,0.264788]
[1641629273599,5.374,3227.4,3226.4,0.8429091]
[1641629273998,19.16589,3227.9,3227.1,2.00479]
[1641629274198,19.16589,3227.9,3227.1,2.71319]
[1641629274199,2.00479,3227.9,3227.1,2.71319]
[1641629274899,1.5,3227.8,3227.1,2.71319]
[1641629275699,0.929463,3227.7,3227.1,3.353977]
[1641629276599,0.929463,3227.7,3227.1,3.618765]
[1641629277200,9.5,3227.8,3227.1,3.618765]
[1641629277201,2.00479,3227.9,3227.1,2.977978]
[1641629277803,2.00479,3227.9,3227.2,0.640787]
[1641629278001,2.00479,3227.9,3227.3,0.264788]
[1641629278404,2.00479,3227.9,3227.1,3.63526037]
[1641629278602,2.00479,3227.9,3227.1,2.00479]
[1641629279704,1.5,3227.7,3227.1,2.00479]
[1641629282105,2.00479,3227.9,3227.2,0.905575]
[1641629282306,2.00479,3227.9,3227.2,1.725375]
[1641629285508,3.50479,3227.9,3227.2,1.725375]
[1641629285707,3.50479,3227.9,3227.2,0.8198]
[1641629285908,3.50479,3227.9,3227.1,2.00479]
[1641629287010,2.00479,3227.9,3227.1,2.00479]
[1641629288212,1.5,3227.2,3226.4,0.77092848]
[1641629288410,2.324,3227.2,3226.4,0.77092848]
[1641629288609,2.324,3227.2,3226.3,0.77092848]
[1641629289010,0.824,3227.2,3226.3,0.77092848]
[1641629289609,3.65316236,3227.4,3226.3,0.77092848]
[1641629289812,3.65316236,3227.4,3226.2,2.00479]
[1641629290010,3.50479,3227.1,3226.2,2.00479]
[1641629290212,1.36815816,3226.8,3226.2,2.00479]
[1641629290612,1.36815816,3226.8,3226.2,2.645577]
[1641629291214,1.5,3227.1,3226.2,2.645577]
[1641629292214,3.50479,3227.1,3226.2,2.645577]
[1641629293816,2.00479,3227.1,3226.2,2.645577]
[1641629294216,3.50479,3227.1,3226.2,2.00479]
[1641629294616,1.13993245,3226.8,3226.2,2.00479]
[1641629295218,3.50479,3227.1,3226.2,2.645577]
[1641629295620,1.05634502,3226.8,3226.2,2.645577]
[1641629298025,1.05634502,3226.8,3226.2,2.910365]
[1641629298826,1.05634502,3226.8,3226.2,2.645577]
[1641629300128,1.05634502,3226.8,3226.2,2.910365]
[1641629300830,0.92958372,3227.3,3226.2,2.910365]
[1641629301030,1.5,3227.1,3226.2,2.910365]
[1641629302132,1.5,3227.1,3226.7,2.00479]
[1641629303231,8.92973524,3226.8,3226.2,2.00479]
[1641629303431,0.92987277,3226.3,3225.9,0.77092848]
[1641629303631,1.55008719,3226.1,3225.9,0.77092848]
[1641629303831,2.48368719,3226.1,3225.9,0.77092848]
[1641629304232,4.48847719,3226.1,3225.9,0.77092848]
[1641629304432,11.49999999,3226.0,3225.2,1.53729891]
[1641629304635,11.49999999,3226.0,3224.5,3.20243631]
[1641629304636,13.32,3225.1,3224.7,1.63305398]
[1641629304835,21.32,3225.0,3224.9,1.29199489]
[1641629305033,31.781394,3225.0,3224.5,1.93799234]
[1641629305240,22.82,3224.6,3224.2,1.63305398]
[1641629305434,13.5,3224.3,3224.2,0.41105398]
[1641629305636,0.7308,3224.3,3224.2,0.41105398]
[1641629305834,5.693194,3224.3,3224.2,0.41105398]
[1641629306241,0.7308,3224.3,3224.0,3.84322331]
[1641629306438,0.7308,3224.3,3224.0,3.20243631]
[1641629306738,0.7308,3224.3,3223.7,6.18721972]
[1641629306939,0.7308,3224.3,3223.7,2.00479]
[1641629307839,10.2308,3224.3,3223.0,0.65974978]
[1641629308237,2.00479,3223.7,3223.0,2.66453978]
[1641629309438,2.00479,3223.7,3223.0,2.00479]
[1641629309840,2.00479,3223.7,3223.1,0.640787]
[1641629310141,4.00958,3223.7,3223.1,0.640787]
[1641629310340,4.00958,3223.7,3223.1,0.905575]
[1641629310540,25.93856988,3224.7,3223.1,2.405575]
[1641629310743,1.55076988,3224.7,3223.3,1.5]
[1641629310944,1.55076988,3224.7,3223.3,2.3743]
[1641629311144,16.9828,3225.1,3223.4,1.15029896]
[1641629311546,30.3028,3225.1,3223.4,1.15029896]
[1641629311945,1.55066407,3224.9,3223.4,1.15029896]
[1641629312147,2.00479,3224.3,3223.6,2.00479]
[1641629312946,2.00479,3224.3,3223.7,0.264788]
[1641629313145,2.00479,3224.3,3223.8,0.640787]
[1641629313347,2.00479,3224.3,3223.9,1.06749389]
[1641629313546,2.00479,3224.3,3223.9,1.33228189]
[1641629313948,2.00479,3224.6,3223.9,1.33228189]
[1641629314148,2.00479,3224.6,3224.0,2.00479]
[1641629314348,7.37879,3225.0,3224.4,1.55002713]
[1641629314751,7.37879,3225.0,3224.5,1.764788]
[1641629314951,16.6322,3226.1,3224.5,1.764788]
[1641629315350,16.6322,3226.1,3224.8,1.5]
[1641629315552,20.83233902,3226.2,3224.8,2.2969]
[1641629315553,3.73503902,3226.2,3224.8,2.2969]
[1641629315750,1.05060815,3226.2,3225.1,1.5]
[1641629315951,1.05060815,3226.2,3225.3,1.54958277]
[1641629316153,2.00479,3226.1,3225.3,3.55437277]
[1641629316452,2.00479,3226.1,3225.4,2.0341905]
[1641629318357,2.00479,3226.1,3225.0,2.00479]
[1641629318656,4.27689882,3226.1,3224.2,3.76185314]
[1641629318856,8.0,3225.7,3224.2,3.76185314]
[1641629319057,8.0,3225.7,3224.4,1.29201358]
[1641629319257,6.461086,3225.6,3224.4,1.29201358]
[1641629319656,4.961086,3225.6,3224.4,1.29201358]
[1641629320158,4.961086,3225.6,3224.2,4.3426105]
[1641629320356,2.00479,3224.7,3224.2,2.79059226]
[1641629320556,2.00479,3224.7,3224.3,0.905575]
[1641629321456,2.00479,3224.7,3224.0,2.00479]
[1641629321657,2.88669,3224.7,3224.0,2.00479]
[1641629322157,16.20669,3224.7,3224.0,2.00479]
[1641629322561,4.96224,3224.6,3223.6,2.00479]
[1641629322958,19.21259342,3224.6,3223.6,2.00479]
[1641629323162,5.89259342,3224.6,3223.6,2.00479]
[1641629323360,19.21259342,3224.6,3223.6,2.00479]
[1641629324061,5.89259342,3224.6,3223.6,2.00479]
[1641629324263,2.00479,3224.2,3223.6,2.00479]
[1641629330368,2.00479,3224.2,3223.6,2.645577]
[1641629331169,0.93052836,3224.0,3223.6,2.645577]
[1641629331567,2.00479,3224.2,3223.7,0.264788]
[1641629332469,2.00479,3224.2,3223.7,0.905575]
[1641629337374,0.93035342,3224.6,3223.7,0.905575]
[1641629338374,0.93035342,3224.6,3224.0,2.00479]
[1641629338575,0.93035342,3224.6,3224.1,0.264788]
[1641629340675,2.00479,3224.7,3224.3,1.5]
[1641629340876,2.00479,3224.7,3224.4,2.45559011]
[1641629341476,2.00479,3224.7,3224.5,1.04519117]
[1641629341978,2.00479,3224.7,3224.6,0.264788]
[1641629344181,2.00479,3224.7,3224.4,0.640787]
[1641629344484,2.69319,3224.7,3224.3,0.264788]
[1641629345482,2.69319,3224.7,3224.0,5.45275461]
[1641629345686,2.69319,3224.7,3224.0,5.71754261]
[1641629347086,2.00479,3224.7,3224.0,5.71754261]
[1641629348087,2.94949,3224.7,3224.0,5.71754261]
[1641629351791,0.9447,3224.7,3224.2,1.55011843]
[1641629351991,2.00479,3225.1,3224.2,1.55011843]
[1641629352191,2.00479,3225.1,3224.3,0.264788]
[1641629352389,2.00479,3225.1,3224.6,2.00479]
[1641629352592,2.00479,3225.1,3224.7,0.640787]
[1641629353590,2.00479,3225.1,3224.8,0.264788]
[1641629356294,2.00479,3225.1,3224.6,2.00479]
[1641629356493,2.83489,3225.1,3224.6,2.00479]
[1641629362302,0.93026553,3224.9,3224.6,2.00479]
[1641629362501,0.93026553,3224.9,3224.6,1.97679]
[1641629363303,1.5,3224.8,3224.2,0.77542017]
[1641629363603,2.53761509,3224.5,3224.2,0.77542017]
[1641629364003,0.33256021,3224.1,3224.0,2.00479]
[1641629364203,0.7631,3224.1,3224.0,2.00479]
[1641629365704,0.7631,3224.1,3223.5,2.00479]
[1641629366505,2.76789,3224.1,3223.5,2.00479]
[1641629367009,21.32,3224.0,3223.5,2.00479]
[1641629367206,28.47846971,3223.5,3223.0,3.95679667]
[1641629367406,41.79846971,3223.5,3223.0,3.95679667]
[1641629367606,4.963933,3223.4,3223.0,3.95679667]
[1641629367808,5.638833,3223.4,3223.0,3.95679667]
[1641629368007,5.638833,3223.4,3223.0,2.00479]
[1641629369607,3.18582109,3223.2,3223.0,2.00479]
[1641629371310,11.18582109,3223.2,3223.0,2.00479]
[1641629371511,2.78650047,3222.8,3222.6,2.00479]
[1641629371911,8.0,3223.2,3222.6,2.00479]
[1641629372710,19.06851504,3223.3,3222.7,0.4951772]
[1641629372711,21.32,3223.1,3222.7,0.4951772]
[1641629372910,8.0,3222.8,3222.7,0.4951772]
[1641629373110,8.0,3222.8,3222.3,2.00479]
[1641629373111,26.82,3222.8,3222.2,1.95200667]
[1641629373310,1.5,3222.5,3222.2,1.95200667]
[1641629373611,26.87193472,3222.3,3222.2,1.95200667]
[1641629374016,33.33740872,3222.3,3222.2,0.65999309]
[1641629374214,33.33740872,3222.3,3221.8,1.94800667]
[1641629374413,31.83740872,3222.3,3221.8,1.94800667]
[1641629374916,26.285474,3222.3,3221.8,1.94800667]
[1641629375113,12.965474,3222.3,3221.8,1.94800667]
[1641629375315,12.965474,3222.3,3221.8,0.640787]
[1641629377116,17.76307449,3222.3,3221.8,0.640787]
[1641629378720,17.76307449,3222.3,3221.6,2.00479]
[1641629379519,18.35207449,3222.3,3221.6,2.00479]
[1641629380622,17.76307449,3222.3,3221.7,0.640787]
[1641629381225,17.76307449,3222.3,3221.6,2.00479]
[1641629381422,13.32,3222.2,3221.6,2.00479]
[1641629382022,2.67172409,3221.9,3221.6,2.00479]
[1641629382722,3.10671153,3221.9,3221.6,2.00479]
[1641629384524,5.73224353,3222.4,3221.6,2.00479]
[1641629384825,5.73224353,3222.4,3221.6,2.91829]
[1641629385125,5.73224353,3222.4,3221.7,0.264788]
[1641629385624,8.0,3222.2,3221.6,2.00479]
[1641629385828,2.67188286,3221.7,3221.6,2.00479]
[1641629387827,0.55839912,3221.7,3221.6,2.00479]
[1641629388027,8.0,3222.2,3221.6,2.00479]
[1641629389828,8.0,3222.2,3221.6,2.269578]
[1641629391329,8.0,3222.2,3221.6,2.00479]
[1641629392130,3.20571654,3222.3,3221.6,2.00479]
[1641629392330,2.00479,3222.4,3221.6,2.269578]
[1641629393031,2.00479,3222.4,3221.8,1.5]
[1641629393233,9.05060815,3223.6,3222.1,1.5]
[1641629393431,0.9307265,3223.3,3222.4,1.5]
[1641629393631,0.9307265,3223.3,3222.4,0.6843]
[1641629393833,0.93066446,3223.6,3222.4,0.6843]
[1641629394436,0.93066446,3223.6,3222.5,0.81523216]
[1641629394636,2.00479,3223.2,3222.5,4.32002216]
[1641629394835,2.00479,3223.2,3222.7,1.5]
[1641629395037,2.00479,3223.2,3223.0,1.5]
[1641629395237,2.00479,3223.2,3223.1,0.264788]
[1641629395438,2.00479,3223.2,3223.1,1.166888]
[1641629396438,2.00479,3223.2,3223.1,2.59751902]
[1641629400149,2.00479,3223.2,3223.1,2.33273102]
[1641629401146,2.00479,3223.2,3223.1,0.9021]
[1641629401346,24.16079,3223.2,3222.1,1.50652803]
[1641629401546,0.93084754,3222.9,3222.1,1.50652803]
[1641629401746,8.93084754,3222.9,3222.1,1.50652803]
[1641629402750,2.00479,3222.7,3222.1,1.50652803]
[1641629402947,2.00479,3222.7,3222.3,0.905575]
[1641629403847,0.93084754,3222.9,3222.3,0.905575]
[1641629404247,2.00479,3223.2,3222.6,1.5]
[1641629404449,35.83119695,3223.9,3222.9,1.5]
[1641629404653,35.83119695,3223.9,3223.0,2.00479]
[1641629404654,2.00479,3223.7,3223.0,2.00479]
[1641629404848,2.00479,3223.7,3223.1,0.905575]
[1641629405449,2.00479,3223.7,3223.2,1.31479139]
[1641629406750,2.00479,3223.7,3223.2,1.57957939]
[1641629407349,2.00479,3223.7,3223.2,1.31479139]
[1641629407753,10.00479,3223.7,3223.2,1.31479139]
[1641629407951,0.93074149,3223.3,3223.0,2.00479]
[1641629410552,8.93074149,3223.3,3223.0,2.00479]
[1641629410754,2.00479,3223.1,3222.6,0.83527187]
[1641629410956,2.00479,3223.1,3222.7,0.640787]
[1641629412056,1.19254779,3222.9,3222.6,0.83527187]
[1641629412758,1.19254779,3222.9,3222.6,1.10005987]
[1641629412961,1.19254779,3222.9,3222.6,1.74084687]
[1641629413158,1.19254779,3222.9,3222.6,0.83527187]
[1641629413759,8.0,3222.8,3222.2,0.97066778]
[1641629413958,0.95268426,3222.4,3222.1,0.77851253]
[1641629414860,0.95268426,3222.4,3221.8,2.78330253]
[1641629415062,8.95268426,3222.4,3221.8,2.78330253]
[1641629415461,22.27268426,3222.4,3221.8,2.78330253]
[1641629415660,22.27268426,3222.4,3221.8,4.24163033]
[1641629415959,8.95268426,3222.4,3221.8,4.24163033]
[1641629416160,8.95268426,3222.4,3221.8,3.4631178]
[1641629416561,4.0,3222.3,3221.8,3.4631178]
[1641629416762,18.0005,3222.3,3221.8,3.4631178]
[1641629417061,18.0005,3222.3,3221.8,2.00479]
[1641629418265,0.6805,3222.3,3221.8,2.96268977]
[1641629418467,0.95268426,3222.4,3221.8,3.86826477]
[1641629418664,0.95268426,3222.4,3221.8,4.61296477]
[1641629419064,0.95268426,3222.4,3221.8,5.84817677]
[1641629419265,2.00479,3222.7,3222.1,0.264788]
[1641629421470,2.00479,3222.7,3222.1,1.04330053]
[1641629423373,2.00479,3222.7,3222.3,0.77851253]
[1641629423973,2.00479,3222.7,3222.4,0.264788]
[1641629426374,0.93097505,3222.5,3222.3,0.77851253]
[1641629427976,0.9309745,3222.5,3222.3,0.77851253]
[1641629434085,4.9309745,3222.5,3222.3,0.77851253]
[1641629434886,4.0,3222.5,3222.1,0.342707]
[1641629435086,13.32,3222.4,3222.1,0.342707]
[1641629435286,13.32,3222.4,3221.8,4.26045468]
[1641629435685,13.986,3222.4,3221.8,4.26045468]
[1641629436288,13.986,3222.4,3221.8,2.96268977]
[1641629437889,26.63284735,3222.2,3221.8,2.96268977]
[1641629439091,26.63284735,3222.2,3221.8,2.00479]
[1641629440292,26.63284735,3222.2,3221.8,2.269578]
[1641629442591,26.63284735,3222.2,3221.8,2.645577]
[1641629442792,26.63284735,3222.2,3222.1,0.264788]
[1641629444792,26.63284735,3222.2,3221.8,3.94334191]
[1641629445392,26.63284735,3222.2,3221.8,4.20812991]
[1641629445794,26.63284735,3222.2,3221.8,2.910365]
[1641629448197,26.63284735,3222.2,3221.8,2.645577]
[1641629451403,26.63284735,3222.2,3221.8,2.00479]
[1641629451802,26.63284735,3222.2,3221.8,2.645577]
[1641629452802,26.63284735,3222.2,3221.8,2.00479]
[1641629453706,27.51344735,3222.2,3221.8,2.00479]
[1641629454202,27.51344735,3222.2,3221.8,2.645577]
[1641629455004,27.51344735,3222.2,3222.1,0.78424124]
[1641629455805,27.51344735,3222.2,3222.1,1.27956291]
[1641629457911,26.63284735,3222.2,3222.1,1.27956291]
[1641629461521,0.79022359,3222.5,3222.1,1.27956291]
[1641629461719,0.79022359,3222.5,3222.1,2.77956291]
[1641629461920,0.79022359,3222.5,3222.3,3.05104409]
[1641629462122,1.05060815,3222.8,3222.3,3.05104409]
[1641629462321,1.05060815,3222.8,3222.1,1.27956291]
[1641629462322,1.05060815,3222.8,3222.7,1.5]
[1641629462523,1.96600807,3223.8,3222.8,0.640787]
[1641629462722,1.57275352,3223.6,3223.2,1.5]
[1641629462921,1.57275352,3223.6,3223.3,0.264788]
[1641629463523,1.57275352,3223.6,3223.4,1.27240292]
[1641629463821,1.57275352,3223.6,3223.5,0.264788]
[1641629464421,2.00479,3223.7,3223.5,0.264788]
[1641629464623,2.00479,3223.7,3223.5,0.905575]
[1641629467825,53.3542,3224.3,3223.5,0.905575]
[1641629468024,8.0,3224.6,3223.5,0.905575]
[1641629468226,4.0,3224.5,3223.5,0.905575]
[1641629468626,4.962779,3224.4,3223.5,0.905575]
[1641629469126,4.962779,3224.4,3223.9,2.00479]
[1641629470629,0.14826345,3224.3,3223.9,2.00479]
[1641629470827,0.14826345,3224.3,3223.9,2.269578]
[1641629472229,4.0,3224.5,3223.9,2.269578]
[1641629472230,0.14826345,3224.4,3223.9,2.269578]
[1641629473729,16.04984636,3224.4,3223.9,2.269578]
[1641629474030,16.04984636,3224.4,3223.9,2.00479]
[1641629474229,4.962548,3224.3,3223.9,2.00479]
[1641629474731,13.32,3224.2,3223.9,2.00479]
[1641629474933,14.035,3224.2,3223.4,1.27240292]
[1641629475134,2.00479,3224.0,3223.4,1.27240292]
[1641629475332,2.00479,3224.0,3223.4,1.91318992]
[1641629477834,2.00479,3224.0,3223.4,2.17797792]
[1641629481236,2.93531234,3224.0,3223.4,2.17797792]
[1641629482037,4.0,3223.9,3223.4,2.17797792]
[1641629482236,4.0,3223.9,3223.4,1.91318992]
[1641629482639,0.93065379,3223.6,3223.4,1.91318992]
[1641629484644,0.93065379,3223.6,3223.4,1.27240292]
[1641629484843,10.00479,3224.0,3223.5,1.55038279]
[1641629485042,2.00479,3224.0,3223.5,1.55038279]